bitfinex/quotes_ETHUSD_20251120
["timestamp","ask_amount","ask_price","bid_price","bid_amount"]
[1763645118509,0.39086843,3019.7,3019.1,0.001]
[1763645118674,0.86506843,3019.7,3019.1,0.001]
[1763645119110,0.4742,3019.6,3019.1,0.001]
[1763645119325,0.0755,3019.2,3019.1,0.001]
[1763645119815,0.30748448,3019.5,3019.1,0.001]
[1763645119979,0.1219,3019.9,3019.2,3.31213566]
[1763645120505,1.13792865,3019.9,3019.2,3.31213566]
[1763645120722,1.21449977,3019.8,3019.1,3.49479534]
[1763645120928,0.30750713,3019.7,3019.1,6.80704071]
[1763645121102,1.13792208,3019.9,3019.1,6.80704071]
[1763645121412,0.30750713,3019.8,3019.1,6.80704071]
[1763645121616,0.30750713,3019.8,3019.1,3.49479534]
[1763645121915,0.30750713,3019.8,3019.1,6.80704071]
[1763645122115,0.30750713,3019.8,3019.1,0.1826]
[1763645122287,3.78567857,3019.8,3019.1,3.31324528]
[1763645122493,0.30750713,3019.7,3019.1,3.31324528]
[1763645122695,0.30752527,3019.7,3019.1,3.49484528]
[1763645122894,0.37408134,3019.7,3019.1,6.80709065]
[1763645123210,0.90699264,3020.2,3019.2,0.4657]
[1763645123438,0.30758955,3020.1,3019.3,0.02292872]
[1763645123721,0.71001627,3020.6,3020.1,0.6692]
[1763645123906,0.0012,3020.6,3020.1,0.6692]
[1763645124091,0.0012,3020.6,3020.2,3.311039]
[1763645124279,0.21184762,3020.6,3020.2,3.311039]
[1763645124705,0.0012,3020.6,3020.1,3.49271067]
[1763645125510,0.30891783,3020.6,3020.1,0.1816]
[1763645125712,0.30891783,3020.6,3020.0,3.31118059]
[1763645126129,0.30891783,3020.6,3020.0,6.62243886]
[1763645126328,0.0012,3020.6,3019.9,3.4929264]
[1763645126530,3.35320696,3020.6,3019.9,3.4929264]
[1763645126731,0.66120753,3020.5,3019.9,3.3113264]
[1763645126920,0.04138524,3020.4,3019.9,3.3113264]
[1763645127121,0.34910307,3020.4,3019.9,3.3113264]
[1763645127436,0.3534897,3020.5,3019.9,3.3113264]
[1763645127635,1.37140792,3020.5,3019.9,3.3113264]
[1763645127841,0.30806597,3020.4,3019.9,3.3113264]
[1763645128042,1.01792488,3020.5,3019.9,6.62269432]
[1763645128214,0.30806597,3020.4,3019.7,3.31158724]
[1763645128541,0.30806597,3020.5,3019.7,6.62317448]
[1763645129220,0.30806597,3020.5,3020.4,0.4876]
[1763645129418,0.0012,3020.6,3020.4,0.4876]
[1763645129943,0.0012,3020.6,3020.2,0.4657]
[1763645130443,0.0012,3020.6,3020.3,3.31092937]
[1763645130646,0.0012,3020.6,3020.3,6.62185874]
[1763645130942,0.0012,3020.6,3019.9,3.79]
[1763645130943,0.0012,3020.6,3020.0,6.62249001]
[1763645131115,0.0012,3020.6,3020.0,3.77693174]
[1763645131315,0.0012,3020.6,3020.0,7.08819001]
[1763645131515,0.0012,3020.6,3020.0,6.62249001]
[1763645131818,0.0012,3020.6,3020.1,0.4657]
[1763645132242,0.0012,3020.6,3020.2,6.622078]
[1763645132544,0.0012,3020.6,3020.2,3.311039]
[1763645132739,0.0012,3020.6,3020.2,6.622078]
[1763645133449,0.0012,3020.6,3020.2,7.087778]
[1763645134540,0.0012,3020.6,3020.2,3.311039]
[1763645135247,0.0012,3020.6,3019.9,6.62273584]
[1763645135642,0.30975112,3020.6,3019.9,6.62273584]
[1763645135868,0.30975112,3020.6,3019.2,0.90699264]
[1763645135869,0.4536,3020.0,3019.1,4.4501]
[1763645136015,0.88414133,3020.3,3019.2,6.62427132]
[1763645136219,0.30775112,3020.2,3019.2,6.62427132]
[1763645136444,0.30775112,3020.2,3019.3,0.4775]
[1763645136647,0.49803238,3020.2,3019.3,0.4775]
[1763645136814,0.49803238,3020.2,3019.2,6.62427132]
[1763645137021,0.49803238,3020.2,3019.2,7.10177132]
[1763645137022,4.97192599,3020.2,3019.2,7.10177132]
[1763645137224,0.7109201,3020.1,3019.2,7.10177132]
[1763645137445,0.7109201,3020.1,3019.1,3.49480742]
[1763645137637,1.1628201,3020.1,3019.1,3.49480742]
[1763645137932,0.4519,3020.0,3019.1,3.49480742]
[1763645138144,1.1628201,3020.0,3019.1,6.80705279]
[1763645138345,0.1224,3019.9,3019.1,6.80705279]
[1763645138533,0.1224,3019.9,3019.1,3.97080742]
[1763645138739,7.09715516,3019.8,3019.1,0.001]
[1763645138948,0.71062876,3019.7,3019.1,0.001]
[1763645139225,0.71062876,3019.8,3019.1,6.80729074]
[1763645140136,0.83302876,3019.9,3019.1,6.80729074]
[1763645140356,0.1224,3019.9,3019.1,6.80729074]
[1763645140561,4.14439765,3019.9,3019.1,6.80729074]
[1763645140770,0.71062876,3019.8,3019.1,6.80729074]
[1763645140948,3.43384148,3019.9,3019.1,6.80729074]
[1763645141255,0.71062876,3019.8,3019.1,3.49504537]
[1763645141456,0.71062876,3019.8,3019.1,6.80729074]
[1763645141643,1.18482876,3019.8,3019.1,6.62549074]
[1763645141847,1.18482876,3019.8,3019.1,6.80729074]
[1763645142062,0.4742,3019.8,3019.1,6.80729074]
[1763645142235,0.83275561,3019.9,3019.1,6.80729074]
[1763645142434,0.71035561,3019.9,3019.2,0.476]
[1763645142635,1.02939264,3020.3,3019.2,0.476]
[1763645142636,0.71035561,3020.1,3019.2,0.476]
[1763645142838,1.73974825,3020.3,3019.2,1.8668812]
[1763645143042,0.83275561,3020.3,3019.2,1.8668812]
[1763645143273,0.83275561,3020.3,3019.3,0.476]
[1763645143459,0.04138798,3020.2,3019.3,0.476]
[1763645144546,0.82335561,3020.4,3019.4,9.95867578]
[1763645144754,0.113,3020.4,3019.5,1.37466675]
[1763645144953,0.113,3020.4,3019.5,5.64066675]
[1763645145170,0.113,3020.4,3019.6,0.476]
[1763645146344,0.0012,3020.6,3019.6,0.476]
[1763645146649,0.0012,3020.6,3019.7,9.93476172]
[1763645146846,0.0012,3020.6,3020.5,0.6811]
[1763645147043,0.0012,3020.6,3020.5,1.086604]
[1763645147354,0.0012,3020.6,3020.5,1.562604]
[1763645147842,0.0012,3020.6,3020.5,1.1571]
[1763645148447,0.0012,3020.6,3020.5,5.37480278]
[1763645150082,0.0012,3020.6,3020.5,6.24336488]
[1763645150275,0.0012,3020.6,3020.5,6.64886888]
[1763645154582,0.0012,3021.0,3020.6,1.81179664]
[1763645154770,0.0012,3021.0,3020.9,0.4993]
[1763645154977,0.0012,3021.0,3020.9,0.904804]
[1763645155175,0.0012,3021.0,3020.9,2.18098259]
[1763645155588,0.0012,3021.0,3020.9,1.77547859]
[1763645155769,0.0012,3021.0,3020.9,0.9753]
[1763645157068,0.0012,3021.0,3020.9,4.28557177]
[1763645157872,0.5504,3021.0,3020.2,0.1818]
[1763645158192,0.0012,3021.0,3020.2,0.1818]
[1763645158385,0.0012,3021.0,3020.3,0.49890329]
[1763645158883,0.0012,3021.0,3020.4,9.93245925]
[1763645159607,0.0012,3021.0,3020.4,10.40845925]
[1763645160311,0.0004,3021.0,3020.4,10.40845925]
[1763645160494,0.0004,3021.0,3020.4,11.46748518]
[1763645160806,0.0004,3021.0,3020.2,7.10098182]
[1763645160807,0.4742,3020.5,3020.2,7.10098182]
[1763645161007,0.4742,3020.5,3020.2,10.41202082]
[1763645161207,0.4742,3020.5,3020.2,7.10098182]
[1763645161610,0.4742,3020.5,3020.2,10.41202082]
[1763645161904,0.4742,3020.3,3020.2,7.10098182]
[1763645162592,0.075,3020.8,3020.2,7.10098182]
[1763645162799,0.42646664,3020.8,3020.2,10.41202082]
[1763645163104,0.4702,3020.3,3020.2,7.10098182]
[1763645163509,0.4702,3020.3,3020.2,3.79]
[1763645163699,0.5492,3020.3,3019.3,6.62405192]
[1763645164010,0.4742,3020.7,3019.4,0.92991862]
[1763645164215,0.4742,3020.7,3019.5,1.87090625]
[1763645164378,0.4742,3020.7,3019.5,2.34690625]
[1763645164574,0.4742,3020.7,3019.7,0.405504]
[1763645165007,0.4742,3020.7,3019.9,9.93410376]
[1763645165400,0.1291,3020.9,3020.0,0.476]
[1763645165709,0.6033,3020.9,3020.0,1.51701038]
[1763645165907,0.6033,3020.9,3020.0,0.476]
[1763645166280,0.0004,3021.0,3020.0,0.476]
[1763645166489,0.0004,3021.0,3020.1,3.79]
[1763645166681,0.0004,3021.0,3020.2,0.476]
[1763645167198,0.0004,3021.0,3020.3,9.93278811]
[1763645167513,0.1291,3020.9,3020.3,6.62185874]
[1763645167905,0.1291,3020.9,3020.3,9.93278811]
[1763645168213,0.1291,3020.9,3020.3,6.62185874]
[1763645168412,0.1291,3020.9,3020.3,9.93278811]
[1763645169015,0.1291,3020.9,3020.2,6.622078]
[1763645169187,0.1291,3020.9,3020.2,9.933117]
[1763645169397,0.1291,3020.9,3020.2,6.622078]
[1763645169781,0.1291,3020.9,3020.2,9.933117]
[1763645169985,0.6033,3020.9,3020.3,0.001]
[1763645170617,0.1291,3020.9,3020.3,0.001]
[1763645170784,0.6033,3020.9,3020.3,0.001]
[1763645171129,0.1291,3020.9,3020.3,0.001]
[1763645171781,0.0004,3021.0,3020.3,0.001]
[1763645171782,0.0004,3021.0,3020.3,0.4671]
[1763645172180,0.0004,3021.0,3020.9,0.4634]
[1763645173179,0.0004,3021.0,3020.9,3.77367177]
[1763645175519,0.0004,3021.0,3020.9,3.31027177]
[1763645176822,0.0004,3021.0,3020.9,3.77367177]
[1763645177019,0.0004,3021.0,3020.9,4.97106845]
[1763645177233,0.0004,3021.0,3020.9,5.37657245]
[1763645177530,0.0004,3021.0,3020.9,6.28356509]
[1763645177730,0.0004,3021.0,3020.9,6.26067328]
[1763645180407,0.0004,3021.0,3020.9,6.28356509]
[1763645181414,0.002,3021.6,3021.4,0.405504]
[1763645181741,0.002,3021.6,3021.5,5.08551106]
[1763645181938,0.002,3021.6,3021.5,6.50033341]
[1763645182137,1e-08,3021.7,3021.6,2.24199664]
[1763645182309,1e-08,3021.7,3021.6,2.35499664]
[1763645182954,1e-08,3021.7,3021.6,2.37786927]
[1763645183238,1e-08,3021.7,3021.6,2.35499664]
[1763645183440,1e-08,3021.7,3021.6,3.6782634]
[1763645183642,1e-08,3021.7,3021.6,7.01064092]
[1763645183842,0.002,3023.1,3021.7,0.405504]
[1763645184059,0.002,3023.1,3021.9,1.77589664]
[1763645184229,0.0012,3022.0,3021.9,1.77589664]
[1763645184540,0.0012,3022.0,3021.9,3.11136223]
[1763645185548,0.0012,3022.0,3021.9,0.86936559]
[1763645185748,0.0012,3022.0,3021.9,5.14566898]
[1763645186446,0.0012,3022.0,3021.9,4.67956898]
[1763645186813,0.0012,3022.0,3021.9,3.30917634]
[1763645187621,0.5464,3022.0,3021.7,3.30936063]
[1763645187949,0.1287,3021.9,3021.7,6.618756]
[1763645188145,0.0743,3021.8,3021.7,3.30936063]
[1763645188351,0.0743,3021.8,3021.6,3.42250127]
[1763645188352,0.0743,3021.8,3021.6,3.30946375]
[1763645188511,0.0047,3021.7,3021.6,3.30946375]
[1763645188944,0.0012,3022.0,3021.6,6.61896864]
[1763645189124,0.4541,3021.7,3021.6,3.30946375]
[1763645190147,0.0012,3022.0,3021.5,0.001]
[1763645190543,0.0012,3022.0,3021.5,0.48997141]
[1763645190745,0.0012,3022.0,3021.5,0.38097317]
[1763645190934,0.124,3021.9,3021.5,0.001]
[1763645192177,0.5982,3021.9,3021.5,0.001]
[1763645194773,0.124,3021.9,3021.5,0.001]
[1763645194977,0.075,3021.6,3021.5,0.001]
[1763645195174,0.124,3021.9,3021.5,0.001]
[1763645195560,0.5982,3021.9,3021.5,0.001]
[1763645195875,0.075,3021.6,3021.5,0.001]
[1763645196265,0.5452,3021.6,3021.5,0.001]
[1763645198948,0.124,3021.9,3021.5,0.001]
[1763645199150,0.5936,3021.9,3021.5,0.001]
[1763645199445,0.124,3021.9,3021.5,0.001]
[1763645200394,0.0012,3022.0,3021.5,6.62022884]
[1763645200703,0.0796,3021.6,3021.5,3.31061442]
[1763645201356,0.5453,3021.6,3021.5,3.31061442]
[1763645201992,0.0796,3021.6,3021.5,3.31061442]
[1763645202353,0.5897,3021.9,3021.5,6.62022884]
[1763645203900,0.0834,3021.6,3021.5,3.31061442]
[1763645205763,0.124,3021.9,3021.5,9.92984326]
[1763645206502,0.0012,3022.0,3021.5,10.42794326]
[1763645206697,0.0012,3022.0,3021.6,0.4981]
[1763645207373,0.0012,3022.0,3021.7,6.61879074]
[1763645207775,0.0012,3022.0,3021.7,7.11689074]
[1763645208004,0.0012,3022.0,3021.7,6.61879074]
[1763645208163,0.0004,3022.0,3021.7,6.61879074]
[1763645209086,0.0004,3022.0,3021.7,8.48829299]
[1763645210321,0.0004,3022.0,3021.9,0.4881]
[1763645210674,0.0004,3022.0,3021.9,0.9862]
[1763645210910,0.0004,3022.0,3021.9,1.391704]
[1763645211217,0.0004,3022.0,3021.9,5.60787298]
[1763645211523,0.0004,3022.0,3021.9,7.34350595]
[1763645213111,1e-08,3022.4,3022.3,1.075804]
[1763645213275,1e-08,3022.4,3022.3,11.45231624]
[1763645213479,1e-08,3022.4,3022.3,11.95041624]
[1763645218996,0.47070001,3022.4,3022.0,0.13247204]
[1763645219185,1e-08,3022.4,3022.3,3.79683837]
[1763645219795,1e-08,3022.4,3022.3,3.30873837]
[1763645220532,0.46680001,3022.4,3022.3,3.30873837]
[1763645220987,1e-08,3022.4,3022.3,3.30873837]
[1763645221523,1e-08,3022.4,3022.1,7.52490732]
[1763645221695,1e-08,3022.4,3022.1,9.12508314]
[1763645221895,1e-08,3022.4,3022.1,8.62698314]
[1763645222100,0.4707,3022.2,3022.1,3.30895734]
[1763645223395,1e-08,3022.4,3022.1,6.61791468]
[1763645223706,1e-08,3022.4,3021.8,3.30919973]
[1763645224284,1e-08,3022.4,3021.7,0.90699264]
[1763645224490,0.46960001,3022.4,3021.9,0.001]
[1763645225388,0.0796,3022.0,3021.9,0.001]
[1763645226412,0.5453,3022.0,3021.9,0.001]
[1763645231738,0.5453,3022.0,3021.5,0.001]
[1763645231739,0.85412534,3022.0,3021.5,0.001]
[1763645232050,0.1947,3021.6,3021.5,0.001]
[1763645232255,0.6469,3021.6,3021.5,0.001]
[1763645237431,1.04252489,3021.6,3021.5,0.001]
[1763645237630,0.6469,3021.6,3021.5,0.001]
[1763645239247,1.55389264,3021.6,3021.5,0.001]
[1763645239448,0.90699264,3021.5,3021.2,0.001]
[1763645239682,0.0134,3021.3,3021.2,0.001]
[1763645240049,0.4664,3021.3,3021.2,0.001]
[1763645241784,0.1105,3021.6,3021.2,0.001]
[1763645242084,0.4734,3021.3,3021.2,0.001]
[1763645242449,0.5492,3021.3,3021.2,0.001]
[1763645244998,0.4734,3021.3,3021.2,0.001]
[1763645246103,0.5492,3021.3,3021.2,0.001]
[1763645247825,0.4734,3021.3,3021.2,0.001]
[1763645248124,0.5492,3021.3,3021.2,0.001]
[1763645248478,0.85807025,3021.3,3021.2,0.001]
[1763645248699,0.59057291,3021.3,3021.2,0.001]
[1763645248921,0.5492,3021.3,3021.2,0.001]
[1763645249410,0.4734,3021.3,3021.2,0.001]
[1763645249717,0.5492,3021.3,3021.2,0.001]
[1763645250013,0.4734,3021.3,3021.2,0.001]
[1763645250319,1.49756555,3021.3,3021.2,0.001]
[1763645250513,5.82824156,3021.3,3021.2,0.001]
[1763645251016,2.47703514,3021.3,3021.2,0.001]
[1763645251220,5.78686865,3021.3,3021.2,0.001]
[1763645252604,5.82824156,3021.3,3021.2,0.001]
[1763645253314,7.11788689,3021.3,3021.2,0.001]
[1763645253513,6.19237265,3021.3,3021.2,0.001]
[1763645253713,6.23374556,3021.3,3021.2,0.001]
[1763645254609,2.92391205,3021.3,3021.2,0.001]
[1763645254816,6.23374556,3021.3,3021.2,0.001]
[1763645256209,6.23294556,3021.3,3021.2,0.001]
[1763645256415,7.41106021,3021.3,3021.2,0.001]
[1763645256711,5.78606865,3021.3,3021.2,0.001]
[1763645257092,1.4934425,3021.3,3021.2,0.001]
[1763645257613,0.78157032,3021.3,3021.2,0.001]
[1763645257827,0.51397291,3021.3,3021.2,0.001]
[1763645258035,0.82294323,3021.3,3021.2,0.001]
[1763645258234,1.73762331,3021.3,3021.2,0.001]
[1763645258394,0.30897032,3021.3,3021.2,0.4524]
[1763645258727,0.89474323,3021.3,3021.2,0.001]
[1763645258894,1.60661541,3021.3,3021.2,0.001]
[1763645259080,1.13801541,3021.3,3021.2,0.001]
[1763645259284,0.42614323,3021.3,3021.2,0.001]
[1763645259504,0.7197176,3021.3,3021.2,0.001]
[1763645259910,1.1883176,3021.3,3021.2,0.001]
[1763645260184,1.90018978,3021.3,3021.2,0.001]
[1763645260415,3.6979181,3021.3,3021.2,0.001]
[1763645260621,3.65654519,3021.3,3021.2,0.001]
[1763645260998,2.00363514,3021.3,3021.2,0.001]
[1763645261212,1.92783514,3021.3,3021.2,0.4524]
[1763645261411,1.92783514,3021.3,3021.2,0.001]
[1763645261722,2.00763514,3021.3,3021.2,0.001]
[1763645262947,1.92783514,3021.3,3021.2,0.001]
[1763645263110,1.0208425,3021.3,3021.2,0.4524]
[1763645263295,0.30897032,3021.3,3021.2,0.4524]
[1763645263499,1.0208425,3021.3,3021.2,0.9359]
[1763645263702,0.30897032,3021.3,3021.2,0.9359]
[1763645264025,0.30987653,3021.3,3021.2,0.9359]
[1763645264334,0.30987653,3021.3,3021.2,3.76234306]
[1763645264945,0.30987653,3021.3,3021.2,3.31094306]
[1763645265137,0.30987653,3021.3,3021.2,0.001]
[1763645265437,2.18466985,3021.3,3021.2,0.001]
[1763645265803,1.29393417,3021.3,3021.2,0.001]
[1763645267413,1.29667934,3021.3,3021.2,0.001]
[1763645268544,1.33805225,3021.3,3021.2,0.001]
[1763645268755,7.20159305,3021.3,3021.2,0.001]
[1763645269041,1.31249664,3021.2,3021.1,0.001]
[1763645269241,2.81429052,3021.2,3021.1,0.001]
[1763645269443,36.12423358,3021.2,3021.1,0.001]
[1763645269740,1.31249664,3021.0,3019.6,6.58039382]
[1763645269922,0.89338752,3020.4,3019.6,6.58039382]
[1763645270108,1.02449388,3020.3,3019.6,7.06389382]
[1763645270318,0.30987653,3020.2,3019.7,0.4835]
[1763645270509,0.30987653,3020.1,3019.7,0.4835]
[1763645270714,1.02449388,3020.3,3019.7,0.4835]
[1763645270927,0.30987653,3020.2,3020.0,0.4514]
[1763645271129,0.89338752,3020.5,3020.0,0.4514]
[1763645271130,0.30987653,3020.1,3020.0,0.4514]
[1763645271444,0.30987653,3020.2,3020.1,3.31114863]
[1763645271832,0.30987653,3020.2,3020.1,3.76254863]
[1763645272365,0.30987653,3020.3,3020.1,3.76254863]
[1763645272555,0.30987653,3020.2,3020.1,3.76254863]
[1763645272726,0.30987653,3020.3,3020.1,3.76254863]
[1763645272931,0.30987653,3020.2,3020.1,3.51004863]
[1763645273238,0.30987653,3020.3,3020.1,7.50332682]
[1763645273431,0.30987653,3020.3,3020.2,0.4835]
[1763645273634,0.30987653,3020.5,3020.3,3.31092937]
[1763645274034,0.30987653,3020.5,3020.4,0.9349]
[1763645274530,0.30987653,3020.8,3020.4,0.9349]
[1763645274731,0.30987653,3020.7,3020.5,0.4835]
[1763645274928,0.30987653,3020.9,3020.5,1.52512881]
[1763645275241,0.30987653,3020.8,3020.5,1.52512881]
[1763645275549,0.30987653,3020.8,3020.6,0.4835]
[1763645275754,0.30987653,3021.0,3020.7,7.07238188]
[1763645275929,0.30987653,3021.1,3020.7,6.62098188]
[1763645276140,0.30987653,3021.0,3020.9,0.4514]
[1763645276346,0.90899264,3021.5,3020.9,0.4514]
[1763645276347,0.30987653,3021.1,3020.9,0.4514]
[1763645276541,1.60800487,3021.3,3020.9,0.4514]
[1763645276542,0.30987653,3021.0,3020.9,0.4514]
[1763645276729,0.30987653,3021.1,3020.9,0.4514]
[1763645276933,0.30987653,3021.0,3020.9,0.4514]
[1763645277154,1.02449388,3021.2,3020.9,0.4514]
[1763645277438,0.30987653,3021.1,3020.9,0.4514]
[1763645277768,0.30987653,3021.0,3020.9,3.76167177]
[1763645277944,0.30987653,3021.2,3020.9,3.76167177]
[1763645278142,0.30987653,3021.1,3020.9,3.76167177]
[1763645278347,0.42785355,3021.0,3020.3,6.62185874]
[1763645278664,0.30987653,3020.9,3020.3,6.62185874]
[1763645278863,0.43897653,3020.9,3020.3,6.62185874]
[1763645279763,0.30987653,3020.8,3020.3,6.62185874]
[1763645280068,0.30987653,3020.9,3020.3,6.62185874]
[1763645280368,0.43817653,3020.9,3020.3,10.41185874]
[1763645280541,0.04137976,3020.8,3020.3,7.10092937]
[1763645280744,0.71461735,3020.8,3020.3,7.10092937]
[1763645281042,1.18721735,3020.8,3020.3,7.10092937]
[1763645281256,0.71461735,3020.8,3020.3,7.10092937]
[1763645281438,0.4603,3020.4,3020.3,3.79]
[1763645281640,0.4603,3020.4,3020.0,3.3112475]
[1763645281836,0.0009,3020.3,3020.0,3.3112475]
[1763645282035,0.0758,3020.1,3019.7,3.79505423]
[1763645282241,4.49797794,3020.5,3019.7,3.31155423]
[1763645282569,4.49797794,3020.5,3019.6,3.79515763]
[1763645282570,1.08115294,3020.4,3019.6,3.79514405]
[1763645282776,1.55375294,3020.4,3019.6,3.79514405]
[1763645282981,0.4726,3020.3,3019.6,6.62334096]
[1763645283715,0.46471921,3020.3,3019.6,3.31164405]
[1763645284068,3.7757109,3020.3,3019.6,3.31164405]
[1763645284275,1.07741987,3020.2,3019.6,6.62334096]
[1763645284568,3.7756578,3020.3,3019.6,6.62334096]
[1763645284789,0.71407973,3020.2,3019.5,0.001]
[1763645284994,0.71407973,3020.2,3019.5,3.31280055]
[1763645285302,1.62107237,3020.2,3019.5,3.31280055]
[1763645285501,1.62107237,3020.2,3019.5,0.001]
[1763645285797,0.89338752,3020.1,3019.5,0.001]
[1763645286163,0.90699264,3019.9,3019.5,0.001]
[1763645286491,1.62107237,3019.9,3019.5,0.001]
[1763645288298,4.93252353,3019.9,3019.5,0.001]
[1763645288502,0.71407973,3019.8,3019.5,0.001]
[1763645289069,3.31136864,3019.9,3019.5,0.001]
[1763645289300,0.71407973,3019.8,3019.5,0.001]
[1763645289513,0.89338752,3020.1,3019.5,0.001]
[1763645289514,0.90699264,3019.9,3019.5,0.001]
[1763645289671,1.62107237,3019.9,3019.5,0.001]
[1763645290381,0.71407973,3019.9,3019.5,0.001]
[1763645290583,0.71407973,3020.0,3019.5,0.001]
[1763645291990,6.40755,3019.9,3019.5,0.001]
[1763645292206,1.9302461,3019.8,3019.5,0.001]
[1763645292383,4.33489416,3019.7,3019.5,0.001]
[1763645292580,6.85545237,3019.6,3019.5,0.001]
[1763645292781,5.33087427,3019.6,3019.5,0.001]
[1763645292980,0.30917373,3019.6,3019.5,0.001]
[1763645293203,1.21616637,3019.6,3019.5,0.001]
[1763645293414,0.30917373,3019.6,3019.5,0.001]
[1763645294083,1.02132756,3019.7,3019.5,0.001]
[1763645294281,0.30917373,3019.6,3019.5,0.001]
[1763645294488,0.54340181,3019.6,3019.5,0.001]
[1763645294792,1.40899824,3019.6,3019.5,0.001]
[1763645295988,4.72069515,3019.6,3019.5,0.001]
[1763645296610,21.07280315,3019.6,3019.5,0.001]
[1763645296783,9.75907689,3019.6,3019.5,0.001]
[1763645297604,6.32333737,3019.6,3019.5,0.001]
[1763645297803,8.57343737,3019.6,3019.5,0.001]
[1763645298009,7.68302789,3019.6,3019.5,0.001]
[1763645299227,5.43292789,3019.6,3019.5,0.001]
[1763645300119,5.43274924,3019.6,3019.5,0.001]
[1763645300325,1.02122782,3019.6,3019.5,0.001]
[1763645300522,17.12157948,3020.2,3019.5,0.001]
[1763645300693,1.92766762,3020.1,3019.5,0.001]
[1763645300893,1.02067498,3020.0,3019.5,0.001]
[1763645301095,0.30888578,3019.9,3019.5,0.001]
[1763645301431,0.30888578,3020.0,3019.5,0.001]
[1763645301589,1.02067498,3020.0,3019.5,0.001]
[1763645301924,0.30888578,3019.9,3019.5,0.001]
[1763645302598,1.02065596,3020.0,3019.5,0.001]
[1763645302804,0.30888578,3019.9,3019.5,0.001]
[1763645303006,1.02262197,3020.3,3019.5,0.001]
[1763645303327,0.30888578,3020.2,3019.5,0.001]
[1763645303507,0.002,3020.3,3019.5,0.001]
[1763645304036,0.002,3020.7,3019.5,0.406504]
[1763645304230,0.0012,3020.7,3019.5,0.406504]
[1763645304594,0.0012,3020.7,3019.7,1.31249664]
[1763645304929,0.0012,3020.7,3019.9,0.405504]
[1763645306123,0.0012,3020.7,3019.9,1.31249664]
[1763645306739,0.002,3021.0,3019.9,1.31249664]
[1763645306740,0.002,3021.0,3020.1,0.90699264]
[1763645306918,0.002,3021.0,3020.2,0.405504]
[1763645307463,0.002,3021.0,3020.0,6.62251654]
[1763645307619,0.002,3021.0,3020.0,3.31125827]
[1763645307815,0.002,3021.0,3019.5,0.001]
[1763645308015,0.002,3021.0,3019.6,3.6428919]
[1763645308447,0.002,3021.0,3019.6,6.95458881]
[1763645308759,0.002,3021.0,3019.6,10.26628572]
[1763645308947,1.92856627,3021.0,3019.6,6.95458881]
[1763645309121,0.30859091,3020.9,3019.6,6.95458881]
[1763645309450,0.30859091,3020.9,3019.7,1.0267367]
[1763645309654,1.01988536,3020.9,3019.7,1.0267367]
[1763645309948,0.30859091,3020.8,3019.7,1.0267367]
[1763645310749,3.31049094,3020.7,3019.8,6.62295516]
[1763645311462,3.31049094,3020.7,3019.8,3.31147758]
[1763645311874,3.31049094,3020.7,3019.8,6.62295516]
[1763645312540,0.35013806,3020.6,3019.5,0.001]
[1763645312742,0.90699264,3020.4,3019.5,0.001]
[1763645313061,0.90699264,3020.1,3019.5,0.001]
[1763645313261,0.30875556,3020.0,3019.5,0.001]
[1763645313638,0.405504,3020.2,3019.5,0.001]
[1763645313854,0.90699264,3020.0,3019.5,0.001]
[1763645314057,0.30875556,3019.9,3019.5,0.001]
[1763645314385,0.30884778,3019.9,3019.5,0.001]
[1763645314583,0.30884778,3020.0,3019.5,0.001]
[1763645314945,0.90699264,3020.0,3019.5,0.001]
[1763645315249,0.30884778,3019.9,3019.5,0.001]
[1763645316840,3.31147758,3019.8,3019.5,0.001]
[1763645317269,3.31139056,3019.9,3019.5,0.001]
[1763645317467,0.30884096,3019.8,3019.5,0.001]
[1763645318855,6.62317448,3019.7,3019.5,0.001]
[1763645319056,3.31158724,3019.7,3019.5,0.001]
[1763645319486,0.90899264,3020.3,3019.5,0.001]
[1763645319667,0.90699264,3020.1,3019.5,0.001]
[1763645319855,0.30885223,3020.0,3019.5,0.001]
[1763645320056,1.020508,3020.0,3019.5,0.001]
[1763645320256,0.50574123,3019.9,3019.5,0.001]
[1763645320883,6.62295516,3019.8,3019.5,0.001]
[1763645321086,0.30887448,3019.7,3019.5,0.001]
[1763645321253,3.31147758,3019.8,3019.5,0.001]
[1763645321456,0.30884588,3019.7,3019.5,0.001]
[1763645322188,3.31139856,3019.9,3019.5,0.001]
[1763645322501,3.31136956,3019.9,3019.5,0.001]
[1763645322992,3.3130246,3020.3,3019.5,0.001]
[1763645323154,1.02046734,3020.2,3019.5,0.001]
[1763645323353,0.30883811,3020.1,3019.5,0.001]
[1763645324694,3.62000831,3020.1,3019.5,0.001]
[1763645324867,0.30883811,3020.0,3019.5,0.001]
[1763645325090,3.61999606,3020.1,3019.5,0.001]
[1763645325290,0.30883811,3020.0,3019.5,0.001]
[1763645325493,0.30883811,3020.1,3019.5,0.001]
[1763645325811,0.002,3020.3,3019.5,0.001]
[1763645325981,3.6218042,3020.3,3019.5,0.001]
[1763645326181,3.31294359,3020.3,3019.5,0.001]
[1763645326912,0.35025229,3020.2,3019.5,0.001]
[1763645327117,0.04138798,3020.2,3019.5,0.001]
[1763645328195,0.31006431,3020.3,3019.5,0.001]
[1763645328424,0.0012,3020.3,3019.5,0.001]
[1763645328794,0.0012,3020.3,3019.5,6.62461318]
[1763645329122,0.0012,3020.3,3019.6,0.75316058]
[1763645329523,0.0012,3020.3,3019.5,6.62461318]
[1763645330405,0.31020826,3020.3,3019.5,6.62461318]
[1763645330923,0.0012,3020.3,3019.5,0.001]
[1763645332415,0.0012,3020.3,3019.5,0.02392324]
[1763645332726,0.0012,3020.3,3019.5,0.001]
[1763645332928,0.0012,3020.3,3019.9,0.405504]
[1763645333228,0.0012,3020.3,3019.7,0.90699264]
[1763645333739,0.0012,3020.3,3019.6,9.93509073]
[1763645333740,0.0012,3020.3,3019.6,6.62339382]